bitfinex-derivatives/quotes_ETHF0:USTF0_20250904
["timestamp","ask_amount","ask_price","bid_price","bid_amount"]
[1757024368497,0.3064,4320.0,4319.9,5.28310123]
[1757024368698,3.2078,4321.1,4320.9,0.4136]
[1757024368904,3.4078,4321.1,4321.0,0.3118]
[1757024369201,3.6194,4321.1,4321.0,0.7254]
[1757024370708,3.9153,4321.1,4321.0,0.7254]
[1757024372604,3.9153,4321.1,4321.0,2.23350123]
[1757024373208,3.9153,4321.1,4320.6,0.3118]
[1757024373508,0.7075,4320.9,4320.8,1.38400123]
[1757024374708,0.7075,4320.9,4320.1,0.3118]
[1757024374709,1.37885003,4320.9,4320.1,0.3118]
[1757024374909,0.4116,4320.9,4320.5,1.38400123]
[1757024375098,0.4116,4320.7,4320.6,0.5177]
[1757024375303,0.2959,4321.0,4320.6,1.79760123]
[1757024375509,0.2959,4321.4,4321.0,0.1241]
[1757024375709,0.7075,4321.4,4321.3,0.7254]
[1757024375907,1.37877768,4321.4,4321.3,0.7254]
[1757024377406,0.88287768,4321.4,4321.3,2.10940123]
[1757024378611,0.67127768,4321.4,4321.3,2.10940123]
[1757024378813,0.5319,4321.6,4321.3,2.10940123]
[1757024379007,0.67083497,4321.5,4321.4,0.3118]
[1757024379312,0.67083497,4321.5,4321.4,0.7254]
[1757024379807,0.67083497,4321.5,4321.4,2.10940123]
[1757024380007,1.37833497,4321.5,4321.4,2.10940123]
[1757024380203,0.7075,4321.5,4321.4,2.10940123]
[1757024381408,0.9435,4321.5,4321.4,2.10940123]
[1757024382914,0.7075,4321.5,4321.4,2.10940123]
[1757024383114,0.9435,4321.5,4321.4,2.10940123]
[1757024385715,1.647662,4323.2,4321.4,2.10940123]
[1757024385716,0.5075,4321.9,4321.8,0.7254]
[1757024385911,0.7435,4321.9,4321.8,0.7254]
[1757024386908,0.9435,4321.9,4321.8,0.7254]
[1757024387712,0.2982,4321.8,4321.5,0.288]
[1757024387911,0.6476,4321.9,4321.5,0.6849]
[1757024387912,0.4128,4321.6,4321.5,0.6849]
[1757024388111,0.711,4321.6,4321.5,0.6849]
[1757024388317,0.711,4321.6,4321.5,2.06890123]
[1757024390220,0.711,4321.6,4321.5,0.4844]
[1757024392127,0.711,4321.6,4321.5,2.06890123]
[1757024392322,0.711,4321.6,4321.5,2.19030123]
[1757024392615,0.18161801,4322.6,4321.5,2.19030123]
[1757024392616,3.2078,4322.3,4321.5,2.19030123]
[1757024392921,0.5023,4321.9,4321.8,2.06890123]
[1757024393222,0.711,4321.9,4321.8,2.06890123]
[1757024395219,0.2041,4321.9,4321.8,2.06890123]
[1757024397423,0.5023,4321.9,4321.8,2.06890123]
[1757024397923,0.711,4321.9,4321.8,2.06890123]
[1757024398218,0.711,4321.9,4321.8,1.38400123]
[1757024399521,0.711,4321.9,4321.8,1.86840123]
[1757024400725,1.37736211,4321.9,4321.1,0.288]
[1757024400925,0.711,4321.5,4321.4,2.06890123]
[1757024401222,0.711,4321.5,4321.4,0.6849]
[1757024403220,0.8291,4321.5,4321.4,1.86840123]
[1757024403419,1.49578134,4321.5,4321.1,0.288]
[1757024403617,0.2041,4321.0,4320.9,0.6849]
[1757024403816,0.236,4321.4,4321.3,0.6849]
[1757024403817,0.2041,4321.4,4321.3,0.6849]
[1757024404017,0.4401,4321.4,4321.3,2.06890123]
[1757024404217,0.7383,4321.4,4321.3,0.6849]
[1757024404425,0.236,4321.4,4321.3,2.06890123]
[1757024404929,0.4401,4321.4,4321.3,2.06890123]
[1757024405223,0.7383,4321.4,4321.3,2.06890123]
[1757024406123,0.947,4321.4,4321.3,2.06890123]
[1757024406430,0.6488,4321.4,4321.3,2.06890123]
[1757024416532,0.947,4321.4,4321.3,2.06890123]
[1757024424349,5.31701146,4321.4,4320.2,3.2078]
[1757024424646,0.7056,4320.8,4320.7,0.1948]
[1757024424845,0.9406,4320.8,4320.7,0.1948]
[1757024427639,0.3089,4320.7,4319.8,0.2064]
[1757024427835,0.7056,4320.6,4320.5,1.38400123]
[1757024428940,0.7056,4320.6,4320.0,0.2064]
[1757024429145,1.0642,4320.5,4320.4,1.57880123]
[1757024430148,0.8292,4320.0,4319.9,0.3883]
[1757024430347,1.0642,4320.0,4319.9,0.3883]
[1757024430544,1.0642,4320.0,4319.9,1.97870123]
[1757024430743,0.865,4320.0,4319.9,1.97870123]
[1757024436645,0.865,4320.0,4319.9,1.77230123]
[1757024436853,1.0642,4320.0,4319.9,1.77230123]
[1757024438448,1.0642,4320.0,4319.9,1.57880123]
[1757024438649,1.0642,4320.0,4319.9,1.77230123]
[1757024439656,1.0642,4320.0,4319.9,1.97880123]
[1757024445962,1.0642,4320.0,4319.9,1.57880123]
[1757024446160,1.0642,4320.0,4319.9,1.38400123]
[1757024447861,1.29568,4320.0,4319.9,0.1948]
[1757024448964,1.0642,4320.0,4319.9,0.1948]
[1757024452463,1.0642,4320.0,4319.5,0.2068]
[1757024452768,0.7087,4319.9,4319.8,1.38400123]
[1757024453665,0.7087,4319.9,4319.1,3.4146]
[1757024453666,0.1211,4319.5,4319.1,3.4146]
[1757024453969,0.4965,4319.2,4319.1,0.6043]
[1757024454971,0.2996,4319.2,4319.1,0.6043]
[1757024456063,0.1211,4319.5,4319.1,1.78150123]
[1757024456265,0.2996,4319.7,4319.3,0.3975]
[1757024456863,3.4418,4319.8,4319.6,0.3975]
[1757024457064,3.7414,4319.8,4319.7,1.98830123]
[1757024457465,0.5336,4319.8,4319.7,1.98830123]
[1757024459472,0.7305,4319.8,4319.7,1.98830123]
[1757024461272,0.7305,4319.8,4319.7,0.6043]
[1757024462673,0.9427,4319.8,4319.7,0.3975]
[1757024463170,0.9427,4319.8,4319.7,0.6043]
[1757024463367,0.7087,4319.8,4319.7,0.6043]
[1757024463573,0.4965,4319.8,4319.7,0.6043]
[1757024466773,0.7087,4319.8,4319.7,0.3975]
[1757024469078,0.7087,4319.8,4319.7,1.98830123]
[1757024469379,0.2996,4319.8,4319.7,1.98830123]
[1757024469574,0.4091,4320.8,4320.7,0.3975]
[1757024469780,1.31177455,4320.8,4320.7,0.6908]
[1757024470279,1.31177455,4320.8,4320.3,0.2933]
[1757024470472,0.4091,4320.4,4320.3,0.4921]
[1757024471077,0.4091,4320.4,4320.3,0.6908]
[1757024471576,0.7087,4320.4,4320.3,0.6908]
[1757024474081,0.2996,4320.7,4320.3,0.3975]
[1757024474282,1.647662,4322.4,4320.3,0.3975]
[1757024474283,32.2506,4321.0,4320.6,0.3975]
[1757024474581,32.6597,4321.0,4320.9,0.6908]
[1757024477680,0.9427,4321.0,4320.9,0.6908]
[1757024479278,1.0685,4321.0,4320.9,0.6908]
[1757024480584,0.8345,4321.0,4320.9,0.6908]
[1757024480784,1.0685,4321.0,4320.9,0.6908]
[1757024483694,1.0685,4321.0,4320.6,0.3117]
[1757024483878,1.0685,4321.0,4320.4,0.23145]
[1757024484081,0.7689,4321.0,4320.5,0.1192]
[1757024484278,0.5165,4320.9,4320.8,0.1968]
[1757024484581,0.7143,4320.9,4320.8,0.5085]
[1757024484884,0.7143,4320.9,4320.8,0.1968]
[1757024491288,0.7143,4320.9,4320.8,0.5085]
[1757024493390,0.7143,4320.9,4320.8,0.1968]
[1757024493791,0.7143,4320.9,4320.6,0.3117]
[1757024494493,0.4077,4320.9,4320.3,0.3117]
[1757024494693,0.2099,4320.4,4320.3,0.62475]
[1757024494889,0.5165,4320.4,4320.3,0.705]
[1757024495090,0.7143,4320.4,4320.3,0.705]
[1757024495494,0.4077,4320.4,4320.0,0.3117]
[1757024495794,0.2099,4319.9,4319.8,0.705]
[1757024495994,0.5165,4319.9,4319.8,0.93648]
[1757024496188,0.5165,4319.9,4319.8,0.705]
[1757024496790,0.3066,4319.8,4319.5,0.3117]
[1757024496991,0.7143,4319.6,4319.5,0.5085]
[1757024497498,0.7143,4319.6,4319.5,0.705]
[1757024500403,0.3066,4320.5,4320.2,0.3117]
[1757024500592,0.5165,4320.5,4320.4,0.705]
[1757024501796,0.7143,4320.5,4320.4,0.705]
[1757024505699,3.2078,4321.3,4320.4,0.705]
[1757024505897,0.9483,4320.9,4320.8,0.3933]
[1757024506103,0.9483,4320.9,4320.8,0.705]
[1757024507902,0.9483,4320.9,4320.8,0.1968]
[1757024508094,0.3103,4320.8,4320.3,3.2078]
[1757024508400,0.5139,4320.4,4320.3,3.9061]
[1757024508600,0.7158,4320.4,4320.3,3.9061]
[1757024509400,0.5139,4320.4,4320.3,3.9061]
[1757024509996,0.3103,4320.9,4320.4,0.3018]
[1757024510198,0.5139,4321.2,4321.1,0.6983]
[1757024515110,0.234,4321.3,4321.2,0.3018]
[1757024515405,0.5443,4321.5,4321.4,0.3965]
[1757024515601,0.3103,4321.5,4321.4,0.6983]
[1757024515907,0.3103,4321.5,4321.0,3.55862]
[1757024515908,0.5139,4321.8,4321.7,0.6983]
[1757024516203,0.7479,4321.8,4321.7,0.6983]
[1757024517206,3.2078,4321.9,4321.8,0.3018]
[1757024517507,3.2078,4321.9,4321.8,0.6983]
[1757024518198,0.7479,4322.1,4322.0,0.8177]
[1757024519006,0.5139,4322.1,4322.0,0.8177]
[1757024519506,0.9498,4322.1,4322.0,0.8177]
[1757024519696,0.9498,4322.1,4321.7,0.3018]
[1757024519900,0.4055,4321.8,4321.7,0.5035]
[1757024520105,0.7158,4321.8,4321.7,0.5035]
[1757024521206,0.3103,4321.7,4321.6,3.2078]
[1757024521508,0.7158,4321.7,4321.6,3.2078]
[1757024522010,0.7158,4321.7,4321.6,3.7113]
[1757024524302,0.7158,4321.7,4321.3,0.3018]
[1757024524511,0.7158,4321.1,4321.0,3.6043]
[1757024525010,0.7158,4321.1,4321.0,4.0255]
[1757024527914,0.7158,4321.9,4321.8,0.3965]
[1757024528212,0.9498,4321.9,4321.8,0.6983]
[1757024529007,0.5139,4321.9,4321.8,0.6983]
[1757024529215,0.234,4322.0,4321.8,0.3965]
[1757024529414,0.234,4322.0,4321.9,0.3018]
[1757024529606,0.234,4322.0,4321.9,0.6983]
[1757024529805,0.4376,4322.0,4321.9,0.6983]
[1757024530005,0.7479,4322.0,4321.9,0.6983]
[1757024531814,1.0659,4322.0,4321.9,0.6983]
[1757024532014,1.0659,4322.0,4321.9,0.5035]
[1757024532821,0.9498,4322.0,4321.9,0.6983]
[1757024533218,0.7479,4322.0,4321.9,0.6983]
[1757024533519,3.2078,4322.9,4322.2,0.3965]
[1757024533819,0.7479,4322.8,4322.7,0.6983]
[1757024534207,0.9498,4322.8,4322.7,0.6983]
[1757024535924,0.5139,4322.8,4322.7,0.6983]
[1757024536107,3.6133,4322.9,4322.8,0.3018]
[1757024536310,3.9236,4322.9,4322.8,0.5035]
[1757024536518,0.7158,4322.9,4322.8,0.5035]
[1757024536913,0.7158,4322.9,4322.8,0.6983]
[1757024537120,0.7479,4323.1,4323.0,0.1194]
[1757024537420,0.9498,4323.1,4323.0,0.6983]
[1757024539514,0.7158,4323.1,4323.0,0.6983]
[1757024540020,0.9498,4323.1,4323.0,0.6983]
[1757024540420,0.124,4323.0,4322.4,0.3159]
[1757024540617,0.5022,4322.5,4322.4,0.7199]
[1757024541514,0.2024,4322.6,4322.5,0.1263]
[1757024541715,0.2024,4322.6,4322.5,0.8462]
[1757024542525,0.5022,4322.6,4322.5,0.8462]
[1757024542823,0.7022,4322.6,4322.5,0.8462]
[1757024544125,0.2024,4322.6,4322.5,0.8462]
[1757024544322,0.2998,4322.8,4322.5,0.5303]
[1757024544517,0.5022,4322.8,4322.7,0.404]
[1757024544722,0.5022,4322.8,4322.7,0.7199]
[1757024551133,0.7022,4322.8,4322.7,0.7199]
[1757024553335,0.7022,4322.8,4322.7,0.2021]
[1757024553634,0.7022,4322.8,4322.3,3.2078]
[1757024553824,0.4024,4322.5,4322.4,0.404]
[1757024554032,0.4024,4322.5,4321.8,3.5237]
[1757024554033,0.4024,4321.9,4321.8,3.5237]
[1757024554227,0.7022,4321.9,4321.8,3.2078]
[1757024554528,0.63378,4321.9,4321.2,3.5237]
[1757024554731,0.7022,4321.3,4321.2,3.9277]
[1757024554931,0.7022,4321.3,4321.2,3.2078]
[1757024555234,0.7022,4321.3,4321.2,3.7258]
[1757024556736,0.7022,4321.3,4321.2,0.518]
[1757024561535,0.7022,4321.3,4321.2,0.7199]
[1757024561737,0.4748,4321.9,4321.3,0.3159]
[1757024561941,0.8772,4321.9,4321.8,0.2021]
[1757024562144,0.8772,4321.9,4321.8,0.518]
[1757024564748,0.7022,4321.9,4321.8,0.7199]
[1757024573344,0.7022,4321.9,4321.3,3.2078]
[1757024573547,0.4144,4321.8,4321.7,0.2077]
[1757024573854,0.7139,4321.8,4321.7,0.7223]
[1757024577450,0.234,4322.0,4321.7,0.407]
[1757024577653,0.6484,4322.0,4321.9,0.7223]
[1757024578158,0.9479,4322.0,4321.9,0.7223]
[1757024578851,0.7139,4322.0,4321.9,0.7223]
[1757024579052,3.2078,4322.3,4321.9,0.7223]
[1757024579353,0.234,4322.1,4322.0,0.8456]
[1757024580054,3.2078,4322.8,4322.3,0.3153]
[1757024580260,3.6222,4322.8,4322.7,0.7223]
[1757024580556,0.6484,4322.8,4322.7,0.7223]
[1757024580857,0.9479,4322.8,4322.7,0.7223]
[1757024581660,0.7139,4322.8,4322.7,0.7223]
[1757024581953,0.7414,4323.1,4322.8,0.3153]
[1757024582260,0.9479,4323.1,4323.0,0.7223]
[1757024582452,0.4144,4322.6,4322.5,0.1993]
[1757024582648,0.7139,4322.6,4322.5,0.7223]
[1757024582958,0.7139,4322.6,4322.5,0.8456]
[1757024583149,0.2995,4323.0,4322.5,0.5303]
[1757024583354,0.5074,4323.0,4322.9,0.407]
[1757024583658,0.5074,4323.0,4322.9,0.7223]
[1757024584055,0.7139,4323.0,4322.9,0.7223]
[1757024584560,0.9479,4323.0,4322.9,0.7223]
[1757024584756,1.0737,4323.0,4322.9,0.1993]
[1757024584949,1.0737,4323.0,4322.6,0.3153]
[1757024585357,0.7139,4322.5,4322.4,0.7223]
[1757024586063,0.2995,4322.8,4322.4,0.7223]
[1757024586361,0.2079,4322.9,4322.8,0.7223]
[1757024586561,0.5074,4322.9,4322.8,0.7223]
[1757024586861,0.7139,4322.9,4322.8,0.7223]
[1757024591865,0.5074,4322.9,4322.8,0.7223]
[1757024592063,0.234,4323.1,4323.0,0.8456]
[1757024592263,0.4419,4323.1,4323.0,0.5303]
[1757024592459,0.2079,4323.1,4323.0,0.5303]
[1757024592865,0.2079,4323.1,4323.0,0.8456]
[1757024593467,0.5074,4323.1,4323.0,0.8456]
[1757024593671,0.7139,4323.1,4323.0,0.8456]
[1757024599476,0.4183,4323.6,4323.5,0.411]
[1757024599678,1.62658484,4323.6,4323.5,0.7076]
[1757024600573,0.5111,4323.1,4323.0,0.8309]
[1757024603173,0.2064,4323.1,4323.0,0.8309]
[1757024603975,0.3047,4323.3,4323.0,0.5343]
[1757024604277,0.3047,4323.5,4323.4,0.7076]
[1757024604477,0.5111,4323.6,4323.5,0.4223]
[1757024604677,0.5111,4323.6,4323.5,0.8333]
[1757024606075,0.723,4323.6,4323.5,0.8333]
[1757024607879,0.957,4323.6,4323.5,0.8333]
[1757024609076,0.723,4324.1,4324.0,0.411]
[1757024609376,0.3047,4324.4,4324.3,0.411]
[1757024609577,0.3047,4324.4,4324.3,0.7076]
[1757024609770,0.5111,4324.6,4324.5,0.1257]
[1757024609970,0.5111,4324.6,4324.5,0.8333]
[1757024610677,0.7451,4324.9,4324.8,0.411]
[1757024610884,0.7451,4324.9,4324.8,0.7076]
[1757024611578,0.5111,4324.9,4324.8,0.7076]
[1757024613285,0.723,4324.9,4324.8,0.7076]
[1757024617497,0.723,4324.9,4324.8,0.2127]
[1757024617689,0.4183,4324.6,4324.5,0.2966]
[1757024617894,0.723,4324.6,4324.5,0.2966]
[1757024618490,0.723,4324.6,4324.5,0.5093]
[1757024622499,0.723,4324.6,4324.5,0.2127]
[1757024622895,0.2064,4325.0,4324.9,0.411]
[1757024623194,3.3242,4326.0,4325.8,0.5093]
[1757024623195,0.723,4325.9,4325.8,0.5093]
[1757024625908,0.3047,4325.8,4325.4,3.2078]
[1757024626105,0.3047,4326.4,4325.8,0.7076]
[1757024626307,0.723,4325.9,4325.5,0.2966]
[1757024626508,0.4183,4325.9,4325.5,0.2966]
[1757024626708,0.3047,4325.8,4325.7,0.2127]
[1757024627008,0.723,4325.8,4325.7,0.7076]
[1757024627807,0.1978,4326.4,4326.3,0.714]
[1757024628009,0.2943,4326.7,4326.4,0.3073]
[1757024628210,0.7009,4326.7,4326.6,0.714]
[1757024630111,0.7009,4326.7,4326.6,0.2092]
[1757024630614,0.7009,4326.7,4326.6,0.5165]
[1757024632210,0.7009,4326.7,4326.6,0.2092]
[1757024633803,0.7009,4326.7,4326.6,0.5165]
[1757024634416,0.7009,4326.7,4326.6,0.2092]
[1757024634608,0.7009,4326.7,4326.3,0.3073]
[1757024634609,0.1275,4326.5,4326.3,0.3073]
[1757024634805,0.2943,4326.3,4325.8,0.3073]
[1757024635004,0.7009,4325.9,4325.8,0.714]
[1757024637918,0.7009,4324.9,4324.8,0.2092]
[1757024638216,0.7009,4324.9,4324.8,0.714]
[1757024642415,0.4066,4324.9,4324.5,3.2078]
[1757024642621,0.7009,4324.2,4324.0,3.2078]
[1757024642922,0.7009,4324.8,4324.7,0.4067]
[1757024643115,0.7009,4324.8,4324.7,0.714]
[1757024645318,3.2078,4325.7,4324.7,0.4067]
[1757024645525,0.4921,4325.4,4325.3,0.714]
[1757024646128,0.1978,4325.4,4325.3,0.714]
[1757024648627,0.4921,4325.7,4325.6,0.4067]
[1757024648925,0.4921,4325.7,4325.6,0.714]
[1757024650128,0.7009,4325.7,4325.6,0.714]
[1757024650529,0.4066,4325.7,4325.0,0.359]
[1757024650725,0.4921,4325.2,4325.1,0.714]
[1757024652128,0.1978,4325.2,4325.1,0.714]
[1757024656023,0.1275,4326.0,4325.1,0.4067]
[1757024656235,0.7009,4325.9,4325.8,0.714]
[1757024656725,0.1978,4325.9,4325.8,0.714]
[1757024658126,0.5056,4325.9,4325.8,0.714]
[1757024658633,0.8222,4325.5,4325.4,3.2078]
[1757024659335,8.03,4325.5,4324.9,0.2901]
[1757024659632,4.03,4325.5,4324.9,0.2901]
[1757024661124,0.5144,4325.0,4324.9,0.1923]
[1757024661436,0.7038,4324.6,4324.5,3.2078]
[1757024662233,0.8222,4324.5,4324.4,0.1923]
[1757024662431,0.8222,4324.5,4324.4,0.4824]
[1757024663733,0.8222,4324.5,4324.4,0.6822]
[1757024663935,0.7038,4324.5,4324.4,0.6822]
[1757024669243,0.3078,4325.4,4324.6,0.2901]
[1757024669438,3.5612,4325.5,4325.2,0.6822]
[1757024669439,0.7038,4325.3,4325.2,0.6822]
[1757024670546,0.1931,4325.3,4325.2,0.6822]
[1757024672846,0.7038,4325.9,4325.8,0.6822]
[1757024673037,1.37200767,4325.9,4325.8,0.6822]
[1757024673339,0.1931,4326.0,4325.9,0.2901]
[1757024673534,0.5009,4326.0,4325.9,0.6822]
[1757024673742,0.1931,4326.0,4325.9,0.6822]
[1757024674137,3.5156,4326.6,4326.0,0.1262]
[1757024674337,3.9116,4326.6,4326.5,0.6822]
[1757024675241,3.9116,4326.6,4326.5,0.1923]
[1757024675436,0.1184,4326.5,4326.2,0.2901]
[1757024675743,0.7038,4326.3,4326.2,0.4824]
[1757024675945,0.3078,4326.2,4325.6,3.4979]
[1757024676133,0.396,4325.7,4325.6,3.89]
[1757024676333,0.1931,4325.7,4325.6,3.89]
[1757024677141,0.3078,4325.9,4325.6,3.89]
[1757024677341,0.3078,4326.4,4325.7,0.2901]
[1757024677539,0.7038,4326.4,4326.3,0.1923]
[1757024677841,0.7038,4326.4,4326.3,0.6822]
[1757024681146,0.7038,4326.4,4326.3,0.1923]
[1757024681542,0.7038,4326.4,4326.3,0.4824]
[1757024681944,0.3078,4326.3,4325.7,0.2901]
[1757024682139,0.1931,4325.8,4325.7,0.6822]
[1757024682452,0.7038,4325.8,4325.7,0.6822]
[1757024682844,0.396,4325.4,4325.3,0.4824]
[1757024683047,0.7038,4325.4,4325.3,0.4824]
[1757024684248,0.7038,4325.4,4325.3,0.1923]
[1757024685254,0.7038,4325.4,4325.3,0.6822]
[1757024685445,3.3262,4326.0,4325.3,0.6822]
[1757024685653,0.9388,4325.9,4325.6,0.2901]
[1757024685949,0.1931,4325.2,4325.1,0.6822]
[1757024686147,0.5009,4325.2,4325.1,0.6822]
[1757024687144,0.7038,4325.2,4325.1,0.6822]
[1757024690748,0.1931,4325.2,4325.1,0.6822]
[1757024690947,0.318,4325.8,4325.2,0.3053]
[1757024691147,0.727,4325.8,4325.7,0.2012]
[1757024691348,0.727,4325.8,4325.7,0.5065]
[1757024693156,0.727,4325.8,4325.7,0.2012]
[1757024695959,0.5338,4325.5,4325.4,0.5065]
[1757024696162,0.8518,4325.5,4325.4,0.5065]
[1757024696553,0.8518,4325.5,4325.4,0.2012]
[1757024697359,0.8518,4325.5,4325.0,3.334]
[1757024697360,0.318,4325.4,4325.0,3.5131]
[1757024697559,0.409,4324.6,4324.5,4.0497]
[1757024697765,0.727,4324.6,4324.5,4.0497]
[1757024698159,0.476,4325.4,4324.6,0.3053]
[1757024698366,0.2079,4324.7,4324.6,0.7157]
[1757024698565,0.5259,4324.7,4324.6,0.7157]
[1757024700061,0.318,4325.3,4324.6,0.4104]
[1757024700362,0.2079,4325.3,4325.2,0.7157]
[1757024700559,0.318,4325.9,4325.3,0.3053]
[1757024700762,0.5259,4325.9,4325.8,0.7157]
[1757024701260,32.0294,4326.5,4325.8,0.4104]
[1757024701459,1.39322636,4326.4,4326.3,0.7157]
[1757024701661,0.727,4326.4,4326.3,0.7157]
[1757024702660,0.2079,4326.4,4326.3,0.7157]
[1757024702865,0.5259,4326.4,4326.3,0.7157]
[1757024703765,0.727,4327.4,4327.3,0.2012]
[1757024703965,1.85907126,4327.4,4327.3,0.2012]
[1757024704163,1.54107126,4327.4,4326.6,3.2078]
[1757024704357,1.54107126,4327.4,4327.2,0.5065]
[1757024704358,1.39295126,4327.3,4327.2,0.5065]
[1757024704563,0.98395126,4327.3,4327.2,0.7157]
[1757024704766,0.235,4327.4,4327.3,0.3053]
[1757024704964,0.962,4327.4,4327.3,0.7157]
[1757024705462,0.5259,4327.4,4327.3,0.7157]
[1757024705662,0.727,4327.4,4327.3,0.7157]
[1757024707169,0.409,4327.4,4326.7,0.3053]
[1757024707358,0.2079,4326.8,4326.7,0.5065]
[1757024707563,0.2079,4326.8,4326.7,0.7157]
[1757024708165,0.5259,4326.8,4326.7,0.7157]
[1757024708366,0.727,4326.8,4326.7,0.7157]
[1757024708767,0.5259,4327.1,4327.0,0.5345]
[1757024708966,0.5259,4327.1,4327.0,0.8398]
[1757024710069,0.727,4327.1,4327.0,0.8398]
[1757024710270,0.727,4327.1,4327.0,0.7157]
[1757024711969,0.1248,4327.5,4326.6,3.2078]
[1757024711970,0.727,4326.8,4326.7,0.2012]
[1757024712471,0.727,4326.8,4326.7,0.5065]
[1757024713067,0.727,4326.8,4326.7,0.7157]
[1757024713568,0.318,4326.7,4326.2,0.3053]
[1757024713768,0.318,4326.1,4326.0,4.0476]
[1757024713972,0.5259,4326.4,4326.3,0.7157]
[1757024714374,0.727,4326.4,4326.3,0.7157]
[1757024715670,0.318,4326.9,4326.4,0.3053]
[1757024715974,0.727,4326.9,4326.8,0.7157]
[1757024716468,0.2079,4326.9,4326.8,0.7157]
[1757024717564,0.318,4327.2,4326.8,0.4104]
[1757024717870,0.5239,4327.2,4327.1,0.6999]
[1757024718674,0.7287,4327.2,4327.1,0.6999]
[1757024718868,0.7287,4327.2,4327.1,0.1921]
[1757024719074,0.7287,4327.2,4327.1,0.4901]
[1757024719371,0.7287,4327.2,4327.1,0.6999]
[1757024724265,0.7287,4327.2,4327.1,0.4019]
[1757024724575,0.7287,4327.2,4327.1,0.6999]
[1757024726677,0.5239,4327.2,4327.1,0.6999]
[1757024726874,0.7066,4327.3,4327.2,0.6999]
[1757024727378,0.2959,4327.5,4327.3,0.298]
[1757024727580,0.5018,4327.5,4327.4,0.4019]
[1757024727779,0.2059,4327.5,4327.4,0.6999]
[1757024728474,0.5018,4327.5,4327.4,0.6999]
[1757024729379,0.7066,4327.5,4327.4,0.6999]
[1757024729575,0.1248,4328.0,4327.4,0.6999]
[1757024729784,0.1248,4328.5,4327.9,0.298]
[1757024730083,1.3725174,4328.4,4328.3,0.1921]
[1757024730477,0.5018,4328.3,4327.7,0.298]
[1757024730682,0.5018,4328.3,4328.2,0.6999]
[1757024731175,0.6718,4328.9,4328.8,0.6999]
[1757024731479,0.8766,4328.9,4328.8,0.4901]
[1757024731679,0.17,4328.9,4328.8,0.6999]
[1757024732177,0.17,4328.9,4328.8,0.9359]
[1757024732776,0.8766,4328.9,4328.4,0.534]
[1757024732977,0.7066,4328.5,4328.4,0.9359]
[1757024733175,0.2059,4328.5,4328.4,0.6999]
[1757024733383,0.8311,4328.5,4328.4,0.4019]
[1757024733577,0.5018,4328.5,4328.4,0.6999]
[1757024733881,0.8311,4328.5,4328.4,0.6999]
[1757024734088,0.7066,4328.5,4328.4,0.6999]
[1757024735079,0.17,4328.9,4328.4,0.4019]
[1757024735385,0.8766,4328.9,4328.8,0.6999]
[1757024735773,0.5807,4328.9,4328.8,0.6999]
[1757024735977,0.8766,4328.9,4328.8,0.6999]
[1757024736383,0.8766,4328.9,4328.8,0.1921]
[1757024736884,0.8766,4328.9,4328.8,0.4901]
[1757024737183,0.8766,4328.9,4328.8,0.6999]
[1757024739482,0.8766,4328.9,4328.8,0.4019]
[1757024739881,0.8766,4328.9,4328.8,0.1921]
[1757024740976,4.0844,4328.9,4328.8,0.1921]
[1757024741177,3.7885,4328.9,4328.2,0.298]
[1757024741385,0.5018,4328.3,4328.2,0.6999]
[1757024741588,0.2059,4328.3,4328.2,0.6999]
[1757024742087,0.2959,4328.6,4328.3,0.298]
[1757024742284,0.17,4328.9,4328.7,0.4019]
[1757024742490,0.17,4328.9,4328.8,3.9077]
[1757024742990,0.17,4328.9,4328.8,7.9077]
[1757024743889,0.8766,4328.9,4328.8,4.1437]
[1757024744085,0.8766,4328.9,4328.8,0.6999]
[1757024744282,0.17,4328.9,4328.8,3.9077]
[1757024744681,0.8766,4328.9,4328.8,3.9077]
[1757024744981,0.17,4328.9,4328.8,3.9077]
[1757024747291,0.17,4328.9,4328.8,4.1437]
[1757024753291,0.6903,4330.4,4330.3,0.4232]
[1757024753492,3.2078,4331.4,4330.9,0.4232]
[1757024753493,0.8169,4331.0,4330.9,0.4232]
[1757024753697,0.8169,4331.0,4330.6,0.229]
[1757024753897,0.5193,4331.0,4330.3,3.2078]
[1757024754197,0.5193,4331.0,4330.4,0.447]
[1757024754198,0.8169,4330.5,4330.4,0.447]
[1757024754696,0.8169,4330.5,4330.4,0.9507]
[1757024754997,0.8169,4330.5,4330.4,0.6592]
[1757024755589,0.8169,4330.5,4330.4,0.9507]
[1757024755793,0.8169,4330.5,4330.4,0.236]
[1757024755994,0.8169,4330.0,4329.9,0.7147]
[1757024756195,0.8169,4330.0,4329.9,0.9507]
[1757024756794,0.6903,4330.0,4329.9,0.9507]
[1757024757299,0.8169,4330.0,4329.9,0.7147]
[1757024757498,0.8169,4330.0,4329.5,0.2915]
[1757024759002,0.6903,4329.4,4329.3,0.236]
[1757024759301,0.49,4329.4,4329.3,0.9507]
[1757024759501,0.6166,4330.0,4329.9,0.211]
[1757024759705,0.6166,4330.0,4329.9,0.7147]
[1757024759898,0.8169,4330.0,4329.9,0.4232]
[1757024760206,0.8169,4330.0,4329.6,0.236]
[1757024760398,0.8169,4330.0,4329.3,0.2915]
[1757024760596,0.6903,4329.3,4329.2,0.211]